fUSD/lending_fUSD_20260218
["ID","MTS","AMOUNT","RATE_DAILY","PERIOD"]
[405898649,1771410658924,-1000.0,0.00017513,2]
[405898650,1771410658933,-386.0,0.00017517,2]
[405898651,1771410658943,-1768.0,0.00017534,2]
[405898652,1771410658952,-164.04,0.00017534,14]
[405898653,1771410658961,-3207.6,0.00017534,2]
[405898654,1771410658971,-841.0,0.00017534,2]
[405898655,1771410658980,-1000.0,0.00017534,2]
[405898656,1771410658990,-150.0,0.00017539,2]
[405898657,1771410658999,-1000.0,0.00017542,2]
[405898658,1771410659008,-393.0,0.00017554,2]
[405898659,1771410659017,-1000.0,0.00017565,2]
[405898660,1771410659027,-150.0,0.00017582,2]
[405898661,1771410659035,-1768.0,0.00017589,2]
[405898662,1771410659044,-1557.20080618,0.00017589,2]
[405898663,1771410659053,-162.0,0.0001759,2]
[405898664,1771410659063,-150.0,0.00017592,2]
[405898665,1771410659072,-184.0,0.00017602,2]
[405898666,1771410659081,-150.0,0.00017603,2]
[405898667,1771410659090,-152.0,0.00017625,12]
[405898668,1771410659100,-150.0,0.0001764,2]
[405898669,1771410659110,-150.0,0.0001764,2]
[405898670,1771410659120,-1768.0,0.00017643,2]
[405898671,1771410659132,-1557.20080618,0.00017644,2]
[405898672,1771410659143,-153.0811231,0.00017645,2]
[405898673,1771410659155,-184.0,0.00017649,2]
[405898674,1771410659165,-350.0,0.00017677,2]
[405898675,1771410659179,-2836.0,0.0001768,2]
[405898676,1771410659190,-1000.0,0.00017686,2]
[405898677,1771410659199,-303.0,0.00017693,2]
[405898678,1771410659209,-386.0,0.00017695,2]
[405898679,1771410659220,-1779.00422986,0.00017698,2]
[405898680,1771410659232,-784.44122355,0.000177,2]
[405898681,1771410659241,-403.0,0.000177,5]
[405898682,1771410659251,-400.0,0.000177,6]
[405898683,1771410659259,-1557.20080618,0.00017726,2]
[405898684,1771410659268,-1000.0,0.00017729,2]
[405898685,1771410659278,-184.0,0.00017744,2]
[405898686,1771410659289,-1000.0,0.00017753,2]
[405898687,1771410659298,-288.0,0.00017753,24]
[405898688,1771410659309,-350.0,0.00017772,2]
[405898689,1771410659320,-1000.0,0.00017775,2]
[405898690,1771410659333,-150.0,0.00017779,2]
[405898691,1771410659342,-1557.20080618,0.00017781,2]
[405898692,1771410659353,-1042.0,0.000178,6]
[405898693,1771410659362,-894.24,0.00017808,2]
[405898694,1771410659371,-3207.6,0.00017808,2]
[405898695,1771410659380,-795.67835168,0.00017808,2]
[405898696,1771410659390,-791.58474056,0.00017808,2]
[405898697,1771410659400,-791.58474056,0.00017808,2]
[405898698,1771410659410,-791.58474056,0.00017808,2]
[405898699,1771410659421,-791.58474056,0.00017808,2]
[405898700,1771410659430,-791.58474056,0.00017808,2]
[405898701,1771410659440,-791.58474056,0.00017808,2]
[405898702,1771410659450,-791.58474056,0.00017808,2]
[405898703,1771410659462,-791.58474056,0.00017808,2]
[405898704,1771410659473,-791.58474056,0.00017808,2]
[405898705,1771410659482,-791.58474056,0.00017808,2]
[405898706,1771410659492,-791.58474056,0.00017808,2]
[405898707,1771410659500,-791.58474056,0.00017808,2]
[405898708,1771410659510,-791.58474056,0.00017808,2]
[405898709,1771410659519,-791.58474056,0.00017808,2]
[405898710,1771410659529,-791.58474056,0.00017808,2]
[405898711,1771410659538,-791.58474056,0.00017808,2]
[405898712,1771410659549,-791.58474056,0.00017808,2]
[405898713,1771410659559,-791.58474056,0.00017808,2]
[405898714,1771410659568,-791.58474056,0.00017808,2]
[405898715,1771410659578,-801.41958128,0.00017808,2]
[405898716,1771410659588,-801.41958128,0.00017808,2]
[405898717,1771410659597,-801.41958128,0.00017808,2]
[405898718,1771410659606,-801.41958128,0.00017808,2]
[405898719,1771410659616,-801.41958128,0.00017808,2]
[405898720,1771410659626,-801.41958128,0.00017808,2]
[405898721,1771410659643,-801.41958128,0.00017808,2]
[405898722,1771410659661,-801.41958128,0.00017808,2]
[405898723,1771410659680,-801.41958128,0.00017808,2]
[405898724,1771410659700,-801.41958128,0.00017808,2]
[405898725,1771410659717,-500.0,0.00017808,2]
[405898726,1771410659737,-841.0,0.00017808,2]
[405898727,1771410659757,-1000.0,0.00017808,2]
[405898728,1771410659775,-800.0,0.00017808,2]
[405898729,1771410659794,-250.0,0.00017808,20]
[405898730,1771410659813,-250.0,0.00017808,20]
[405898731,1771410659832,-250.0,0.00017808,20]
[405898732,1771410659847,-250.0,0.00017808,20]
[405898733,1771410659868,-250.0,0.00017808,20]
[405898734,1771410659880,-250.0,0.00017808,20]
[405898735,1771410659900,-250.0,0.00017808,20]
[405898736,1771410659915,-175.581631,0.00017808,20]
[405898737,1771410659931,-150.0,0.00017809,2]
[405898738,1771410659947,-150.0,0.00017814,2]
[405898739,1771410659963,-386.0,0.00017834,2]
[405898740,1771410659979,-1000.0,0.00017851,2]
[405898741,1771410659994,-1004.26991434,0.0001786,2]
[405898742,1771410660010,-500.0,0.00017863,2]
[405898743,1771410660039,-1557.20080618,0.00017863,2]
[405898744,1771410660065,-2443.926682,0.00017866,2]
[405898745,1771410660085,-184.0,0.00017869,2]
[405898746,1771410660106,-393.0,0.00017874,2]
[405898747,1771410660125,-162.64003379,0.0001789,14]
[405898748,1771410660144,-1013.62,0.00017899,2]
[405898749,1771410660162,-1013.62,0.00017899,2]
[405898750,1771410660179,-1013.62,0.00017899,2]
[405898751,1771410660198,-1013.62,0.00017899,2]
[405898752,1771410660217,-1013.7930367,0.00017899,2]
[405898753,1771410660233,-668.89,0.00017899,2]
[405898754,1771410660250,-668.89,0.00017899,2]
[405898755,1771410660267,-668.89,0.00017899,2]
[405898756,1771410660282,-668.89,0.00017899,2]
[405898757,1771410660297,-669.12,0.00017899,2]
[405898758,1771410660313,-500.0,0.00017899,2]
[405898759,1771410660334,-391.77328627,0.00017899,2]
[405898760,1771410660356,-1688.23,0.00017899,2]
[405898761,1771410660380,-1688.23,0.00017899,2]
[405898762,1771410660400,-1688.23,0.00017899,2]
[405898763,1771410660419,-1688.23,0.00017899,2]
[405898764,1771410660438,-1688.39802075,0.00017899,2]
[405898765,1771410660457,-634.99,0.00017899,2]
[405898766,1771410660476,-634.99,0.00017899,2]
[405898767,1771410660495,-634.99,0.00017899,2]
[405898768,1771410660512,-634.99,0.00017899,2]
[405898769,1771410660529,-635.01630866,0.00017899,2]
[405898770,1771410660549,-1230.94,0.00017899,2]
[405898771,1771410660566,-1230.94,0.00017899,2]
[405898772,1771410660582,-1230.94,0.00017899,2]
[405898773,1771410660599,-1230.94,0.00017899,2]
[405898774,1771410660615,-1230.95764413,0.00017899,2]
[405898775,1771410660631,-300.0,0.00017899,2]
[405898776,1771410660646,-300.0,0.00017899,2]
[405898777,1771410660664,-300.0,0.00017899,2]
[405898778,1771410660689,-300.0,0.00017899,2]
[405898779,1771410660709,-300.0,0.00017899,2]
[405898780,1771410660730,-150.0,0.00017899,2]
[405898781,1771410660749,-160.0,0.000179,3]
[405898782,1771410660767,-890.73,0.000179,2]
[405898783,1771410660785,-500.0,0.000179,2]
[405898784,1771410660803,-500.0,0.000179,2]
[405898785,1771410660820,-500.0,0.000179,2]
[405898786,1771410660838,-500.0,0.000179,2]
[405898787,1771410660855,-500.0,0.000179,2]
[405898788,1771410660872,-500.0,0.000179,2]
[405898789,1771410660890,-1002.96,0.000179,2]
[405898790,1771410660908,-150.0,0.00017915,2]
[405898791,1771410660925,-500.0,0.00017918,2]
[405898792,1771410660943,-386.0,0.0001792,2]
[405898793,1771410660960,-150.0,0.00017947,2]
[405898794,1771410660976,-1000.0,0.0001795,2]
[405898795,1771410660998,-150.0,0.00017956,2]
[405898796,1771410661020,-168.0,0.00017967,2]
[405898797,1771410661039,-500.0,0.0001797,2]
[405898798,1771410661058,-1000.0,0.0001797,2]
[405898799,1771410661075,-500.0,0.0001797,2]
[405898800,1771410661092,-1000.0,0.0001797,2]
[405898801,1771410661110,-500.0,0.0001797,2]
[405898802,1771410661127,-1000.0,0.0001797,2]
[405898803,1771410661146,-500.0,0.0001797,2]
[405898804,1771410661164,-500.0,0.0001797,2]
[405898805,1771410661182,-1000.0,0.0001797,2]
[405898806,1771410661200,-500.0,0.0001797,2]
[405898807,1771410661220,-1000.0,0.0001797,2]
[405898808,1771410661237,-1000.0,0.0001797,2]
[405898809,1771410661254,-900.0,0.0001797,2]
[405898810,1771410661271,-1000.0,0.0001797,2]
[405898811,1771410661287,-1602.42010233,0.0001797,2]
[405898812,1771410661304,-500.0,0.00017972,2]
[405898813,1771410661323,-181.0,0.00017973,2]
[405898814,1771410661341,-324.11452571,0.00017973,2]
[405898815,1771410661358,-150.0,0.0001798,2]
[405898816,1771410661374,-150.0,0.00017983,2]
[405898817,1771410661391,-2078.03494059,0.0001799,2]
[405898818,1771410661407,-150.0,0.0001799,2]
[405898819,1771410661426,-386.0,0.00017991,2]
[405898820,1771410661442,-25000.0,0.00017998,3]
[405898821,1771410661458,-5008.1800114,0.00017998,3]
[405898822,1771410661476,-20501.64457345,0.00017998,4]
[405898823,1771410661492,-53677.28309674,0.00017998,4]
[405898824,1771410661511,-150.0,0.00017999,2]
[405898825,1771410661527,-300.0,0.00017999,2]
[405898826,1771410661543,-300.0,0.00017999,2]
[405898827,1771410661560,-300.0,0.00017999,2]
[405898828,1771410661575,-300.0,0.00017999,2]
[405898829,1771410661591,-300.0,0.00017999,2]
[405898830,1771410661608,-150.0,0.00017999,2]
[405898831,1771410661625,-150.0,0.00017999,2]
[405898832,1771410661642,-176.3278099,0.00017999,2]
[405898833,1771410661658,-1497060.76303339,0.00018,2]
[405898834,1771410662759,-300.0,0.00018,2]
[405898835,1771410662774,-111145.58101497,0.00018,2]
[405898836,1771410663121,-632.48749756,6.576e-05,2]
[405898837,1771410663132,-348.291738,0.00016438,2]
[405898838,1771410663145,-461.95752738,0.00018,2]
[405898839,1771410663156,-2418308.34888123,0.00018,2]
[405898840,1771410663165,-145444.62190457,0.00018,2]
[405898841,1771410663175,-5918009.21111524,0.00018,2]
[405898842,1771410663359,-32.24182,0.00018,2]
[405898843,1771410663372,-4643.79417131,0.00018,2]
[405898844,1771410663383,-326.37913478,0.00018,2]
[405898845,1771410663426,-774.6985844,0.00010765,2]
[405898846,1771410664930,-350.95036559,0.0001,2]
[405898847,1771410664940,-5198.3014156,0.00010765,2]
[405898848,1771410664949,-632.48749754,0.00011914,2]
[405898849,1771410664958,-1447.77313733,0.00011916,2]
[405898850,1771410664988,-2013.2,0.00011916,2]
[405898851,1771410838207,500.0,6.527e-05,2]
[405898852,1771410838237,500.0,6.527e-05,2]
[405898853,1771410838271,500.0,6.527e-05,2]
[405898854,1771410843831,500.0,6.527e-05,2]
[405898855,1771410843864,500.0,6.527e-05,2]
[405898856,1771410843893,500.0,6.527e-05,2]
[405898857,1771410864700,500.0,6.527e-05,2]
[405898858,1771410864739,500.0,6.527e-05,2]
[405898859,1771410909018,154.0,6.527e-05,3]
[405898860,1771411209922,154.0,6.527e-05,3]
[405898861,1771411505238,152.0,6.527e-05,3]
[405898863,1771411626523,535.26,6.556e-05,2]
[405898865,1771411810779,152.0,6.527e-05,3]
[405898867,1771411831362,-535.26,7.376e-05,2]
[405898868,1771411831375,-535.26,8.195e-05,2]
[405898869,1771411831385,-425.19,8.426e-05,2]
[405898900,1771411837577,-774.81,8.426e-05,2]
[405898901,1771411837588,-5000.0,8.427e-05,2]
[405898902,1771411837598,-5000.0,8.427e-05,2]
[405898903,1771411837609,-5000.0,8.427e-05,2]
[405898904,1771411837619,-5000.0,8.427e-05,2]
[405898905,1771411837628,-5000.0,8.427e-05,2]
[405898906,1771411837638,-152.0,8.737e-05,3]
[405898907,1771411837647,-535.26,9.015e-05,2]
[405898908,1771411837657,-82361.14,9.088e-05,2]
[405898909,1771411837668,-1680.0,9.269e-05,2]
[405898910,1771411837678,-500.0,9.476e-05,2]
[405898911,1771411837689,-500.0,9.531e-05,2]
[405898912,1771411837699,-500.0,9.586e-05,2]
[405898913,1771411837709,-500.0,9.64e-05,2]
[405898914,1771411837719,-1391.932,9.653e-05,2]
[405898915,1771411837728,-180.591,9.653e-05,2]
[405898916,1771411837737,-500.0,9.695e-05,2]
[405898917,1771411837747,-250.0,9.746e-05,2]
[405898918,1771411837756,-150.0,9.749e-05,2]
[405898919,1771411837764,-500.0,9.75e-05,2]
[405898920,1771411837774,-500.0,9.75e-05,2]
[405898921,1771411837783,-500.0,9.75e-05,2]
[405898923,1771411837793,-500.0,9.75e-05,2]
[405898925,1771411837802,-500.0,9.75e-05,2]
[405898927,1771411837811,-500.0,9.75e-05,2]
[405898929,1771411837820,-500.0,9.75e-05,2]
[405898931,1771411837829,-500.0,9.75e-05,2]
[405898933,1771411837838,-500.0,9.75e-05,2]
[405898935,1771411837847,-500.0,9.75e-05,2]
[405898937,1771411837856,-500.0,9.75e-05,2]
[405898939,1771411837865,-500.0,9.75e-05,2]
[405898941,1771411837874,-500.0,9.75e-05,2]
[405898943,1771411837883,-500.0,9.75e-05,2]
[405898945,1771411837893,-500.0,9.75e-05,2]
[405898947,1771411837902,-500.0,9.75e-05,2]
[405898949,1771411837911,-500.0,9.75e-05,2]
[405898951,1771411837920,-500.0,9.75e-05,2]
[405898953,1771411837929,-500.0,9.75e-05,2]
[405898955,1771411837938,-500.0,9.75e-05,2]
[405898957,1771411837947,-500.0,9.75e-05,2]
[405898960,1771411837957,-500.0,9.75e-05,2]
[405898962,1771411837966,-500.0,9.75e-05,2]
[405898964,1771411837974,-500.0,9.75e-05,2]
[405898965,1771411837983,-500.0,9.75e-05,2]
[405898968,1771411837993,-500.0,9.75e-05,2]
[405898970,1771411838003,-500.0,9.75e-05,2]
[405898971,1771411838012,-500.0,9.75e-05,2]
[405898974,1771411838022,-500.0,9.75e-05,2]
[405898976,1771411838032,-500.0,9.75e-05,2]
[405898977,1771411838041,-500.0,9.75e-05,2]
[405898979,1771411838051,-500.0,9.75e-05,2]
[405898981,1771411838061,-500.0,9.75e-05,2]
[405898983,1771411838071,-500.0,9.75e-05,2]
[405898984,1771411838080,-500.0,9.75e-05,2]
[405898985,1771411838089,-500.0,9.75e-05,2]
[405898986,1771411838098,-500.0,9.75e-05,2]
[405898987,1771411838108,-500.0,9.75e-05,2]
[405898988,1771411838117,-500.0,9.75e-05,2]
[405898989,1771411838127,-500.0,9.75e-05,2]
[405898990,1771411838136,-500.0,9.75e-05,2]
[405898991,1771411838146,-500.0,9.75e-05,2]
[405898992,1771411838156,-500.0,9.75e-05,2]
[405898993,1771411838165,-500.0,9.75e-05,2]
[405898994,1771411838175,-500.0,9.75e-05,2]
[405898995,1771411838184,-500.0,9.75e-05,2]
[405898996,1771411838194,-500.0,9.75e-05,2]
[405898997,1771411838204,-500.0,9.75e-05,2]
[405898998,1771411838214,-500.0,9.75e-05,2]
[405898999,1771411838224,-472.68340978,9.75e-05,2]
[405899000,1771411838233,-394.45999999,9.75e-05,2]
[405899001,1771411838243,-2500.0,9.75e-05,2]
[405899002,1771411838253,-14320.53,9.751e-05,2]
[405899003,1771411838264,-500.0,9.805e-05,2]
[405899004,1771411838273,-9788.54,9.81e-05,2]
[405899005,1771411838283,-535.26,9.834e-05,2]
[405899006,1771411838293,-9757.66,9.848e-05,2]
[405899007,1771411838302,-500.0,9.849e-05,2]
[405899008,1771411838312,-500.0,9.849e-05,2]
[405899009,1771411838322,-462.17609321,9.849e-05,2]
[405899010,1771411838331,-500.0,9.849e-05,2]
[405899011,1771411838342,-8717.21,9.849e-05,2]
[405899012,1771411838352,-250.68248729,9.849e-05,2]
[405899013,1771411838362,-500.0,9.849e-05,2]
[405899014,1771411838372,-358.9081566,9.849e-05,2]
[405899015,1771411838380,-500.0,9.849e-05,2]
[405899016,1771411838390,-500.0,9.849e-05,2]
[405899017,1771411838400,-500.0,9.849e-05,2]
[405899018,1771411838410,-500.0,9.849e-05,2]
[405899019,1771411838419,-165.98301185,9.849e-05,2]
[405899020,1771411838428,-273.82755423,9.849e-05,2]
[405899021,1771411838438,-163.60772486,9.849e-05,2]
[405899022,1771411838447,-8686.91,9.85e-05,2]
[405899023,1771411838458,-10000.0,9.85e-05,2]
[405899024,1771411838470,-3500000.0,9.85e-05,2]
[405899025,1771411838479,-209.40437684,9.859e-05,2]
[405899026,1771411838489,-250.0,9.859e-05,2]
[405899027,1771411838499,-209.40437684,9.859e-05,2]
[405899028,1771411838510,-721.12765535,9.859e-05,2]
[405899029,1771411838519,-174.61919141,9.859e-05,2]
[405899030,1771411838528,-578.20924308,9.859e-05,2]
[405899031,1771411838539,-693.3919763,9.859e-05,2]
[405899032,1771411838548,-277.35679052,9.859e-05,2]
[405899033,1771411838557,-250.0,9.859e-05,2]
[405899034,1771411838567,-162.380719,9.859e-05,2]
[405899035,1771411838575,-1000.0,9.859e-05,2]
[405899036,1771411838585,-473.20037566,9.859e-05,2]
[405899037,1771411838595,-210.82916586,9.859e-05,2]
[405899038,1771411838604,-500.0,9.86e-05,2]
[405899039,1771411838614,-719.04747942,9.914e-05,2]
[405899040,1771411838623,-500.0,9.914e-05,2]
[405899041,1771411838632,-9999.99,9.949e-05,2]
[405899042,1771411838642,-150.99,9.949e-05,2]
[405899043,1771411838651,-745.65223616,9.969e-05,2]
[405899044,1771411838661,-500.0,9.969e-05,2]
[405899045,1771411838670,-500.0,0.0001,2]
[405899046,1771411838679,-500.0,0.0001,2]
[405899047,1771411838688,-500.0,0.0001,2]
[405899048,1771411838697,-500.0,0.0001,2]
[405899049,1771411838707,-500.0,0.0001,2]
[405899050,1771411838718,-500.0,0.0001,2]
[405899051,1771411838728,-500.0,0.0001,2]
[405899052,1771411838738,-500.0,0.0001,2]
[405899053,1771411838749,-500.0,0.0001,2]
[405899054,1771411838759,-500.0,0.0001,2]
[405899055,1771411838768,-500.0,0.0001,2]
[405899056,1771411838778,-500.0,0.0001,2]
[405899057,1771411838787,-500.0,0.0001,2]
[405899058,1771411838796,-500.0,0.0001,2]
[405899059,1771411838805,-500.0,0.0001,2]
[405899060,1771411838814,-500.0,0.0001,2]
[405899061,1771411838824,-500.0,0.0001,2]
[405899062,1771411838833,-500.0,0.0001,2]
[405899063,1771411838843,-500.0,0.0001,2]
[405899064,1771411838852,-500.0,0.0001,2]
[405899065,1771411838862,-500.0,0.0001,2]
[405899066,1771411838871,-500.0,0.0001,2]
[405899067,1771411838880,-200.0,0.0001,2]
[405899068,1771411838890,-504.510834,0.0001,2]
[405899069,1771411838899,-151.0,0.0001,2]
[405899070,1771411838909,-151.0,0.0001,2]
[405899071,1771411838919,-151.0,0.0001,2]
[405899072,1771411838928,-151.0,0.0001,2]
[405899073,1771411838938,-151.0,0.0001,2]
[405899074,1771411838947,-151.0,0.0001,2]
[405899075,1771411838957,-151.0,0.0001,2]
[405899076,1771411838967,-151.0,0.0001,2]
[405899077,1771411838976,-151.0,0.0001,2]
[405899078,1771411838985,-151.0,0.0001,2]
[405899079,1771411838995,-151.0,0.0001,2]
[405899080,1771411839005,-151.0,0.0001,2]
[405899081,1771411839015,-151.0,0.0001,2]
[405899082,1771411839024,-151.0,0.0001,2]
[405899083,1771411839034,-151.0,0.0001,2]
[405899084,1771411839044,-151.0,0.0001,2]
[405899085,1771411839054,-151.0,0.0001,2]
[405899086,1771411839064,-151.0,0.0001,2]
[405899087,1771411839074,-151.0,0.0001,2]
[405899088,1771411839085,-151.0,0.0001,2]
[405899089,1771411839095,-151.0,0.0001,2]
[405899090,1771411839107,-151.0,0.0001,2]
[405899091,1771411839118,-151.0,0.0001,2]
[405899092,1771411839128,-151.0,0.0001,2]
[405899093,1771411839137,-151.0,0.0001,2]
[405899094,1771411839148,-151.0,0.0001,2]
[405899095,1771411839158,-151.0,0.0001,2]
[405899096,1771411839168,-151.0,0.0001,2]
[405899097,1771411839178,-151.0,0.0001,2]
[405899099,1771411839187,-151.0,0.0001,2]
[405899101,1771411839196,-151.0,0.0001,2]
[405899103,1771411839206,-151.0,0.0001,2]
[405899105,1771411839215,-151.0,0.0001,2]
[405899107,1771411839225,-151.0,0.0001,2]
[405899109,1771411839234,-151.0,0.0001,2]
[405899110,1771411839243,-151.0,0.0001,2]
[405899111,1771411839253,-151.0,0.0001,2]
[405899112,1771411839263,-151.0,0.0001,2]
[405899113,1771411839272,-151.0,0.0001,2]
[405899114,1771411839281,-151.0,0.0001,2]
[405899115,1771411839290,-151.0,0.0001,2]
[405899116,1771411839299,-151.0,0.0001,2]
[405899117,1771411839309,-151.0,0.0001,2]
[405899118,1771411839319,-151.0,0.0001,2]
[405899119,1771411839328,-151.0,0.0001,2]
[405899120,1771411839337,-151.0,0.0001,2]
[405899121,1771411839346,-151.0,0.0001,2]
[405899122,1771411839355,-151.0,0.0001,2]
[405899123,1771411839364,-151.0,0.0001,2]
[405899124,1771411839373,-151.0,0.0001,2]
[405899125,1771411839382,-151.0,0.0001,2]
[405899126,1771411839391,-1629.76441726,0.0001,2]
[405899127,1771411839400,-1629.76441726,0.0001,2]
[405899128,1771411839409,-262.91771234,0.0001,2]
[405899130,1771411839423,-401.64041586,0.00010005,2]
[405899132,1771411839433,-773.2413689,0.00010024,2]
[405899133,1771411839442,-294.0,0.00010024,2]
[405899134,1771411839451,-801.85129955,0.00010079,2]
[405899135,1771411839464,-831.51979763,0.00010134,2]
[405899136,1771411839736,-862.28603014,0.00010189,2]
[405899137,1771411839745,-2351.0,0.00010195,2]
[405899138,1771411839755,-894.19061326,0.00010244,2]
[405899139,1771411839764,-927.27566595,0.00010299,2]
[405899140,1771411839773,-961.58486559,0.00010354,2]
[405899141,1771411839783,-307.32831336,0.00010367,2]
[405899142,1771411839792,-500.0,0.00010367,2]
[405899143,1771411839801,-500.0,0.00010367,2]
[405899144,1771411839810,-500.0,0.00010367,2]
[405899145,1771411839819,-218.37761042,0.00010367,2]
[405899146,1771411839828,-500.0,0.00010367,2]
[405899147,1771411839837,-167.33946284,0.00010367,2]
[405899148,1771411839847,-500.0,0.00010367,2]
[405899149,1771411839856,-306.32454784,0.00010367,2]
[405899150,1771411839866,-157.29853366,0.00010367,2]
[405899151,1771411839876,-500.0,0.00010367,2]
[405899152,1771411839885,-500.0,0.00010367,2]
[405899153,1771411839894,-500.0,0.00010367,2]
[405899154,1771411839904,-500.0,0.00010367,2]
[405899155,1771411839914,-500.92647612,0.00010367,2]
[405899156,1771411839924,-500.0,0.00010367,2]
[405899157,1771411839933,-530.0,0.00010405,2]
[405899158,1771411839943,-217.15233878,0.00010407,2]
[405899160,1771411839952,-217.15233878,0.00010407,2]
[405899162,1771411839961,-181.08010149,0.00010407,2]
[405899164,1771411839971,-287.61899177,0.00010407,2]
[405899166,1771411839980,-997.16350561,0.00010409,2]
[405899167,1771411839988,-200.0,0.00010548,2]
[405899168,1771411840000,-255.0,0.00010724,2]
[405899169,1771411840009,-173.62051493,0.00010893,2]
[405899170,1771411840019,-160.0,0.00010893,2]
[405899171,1771411840028,-2251.5658334,0.000109,2]
[405899172,1771411840037,-214307.0,0.000109,2]
[405899173,1771411840046,-1000.0,0.00010915,2]
[405899174,1771411840056,-1000.0,0.00010915,2]
[405899175,1771411840066,-1000.0,0.00010915,2]
[405899176,1771411840076,-1000.0,0.00010915,2]
[405899177,1771411840085,-2251.56583335,0.00010922,2]
[405899178,1771411840095,-25949.63612918,0.00010942,2]
[405899179,1771411840107,-152.0,0.00010948,3]
[405899180,1771411840116,-246.25184454,0.00010955,2]
[405899181,1771411840125,-225.18697532,0.00010955,2]
[405899182,1771411840134,-187.78006525,0.00010955,2]
[405899183,1771411840144,-298.26089446,0.00010955,2]
[405899184,1771411840153,-197.45935606,0.00010959,2]
[405899185,1771411840163,-200.0,0.00011096,2]
[405899186,1771411840172,-60082.98567477,0.00011099,2]
[405899187,1771411840182,-60082.98567477,0.00011099,2]
[405899188,1771411840191,-60082.98567477,0.00011133,2]
[405899189,1771411840201,-5531.0,0.000112,3]
[405899190,1771411840210,-3292.0,0.00011215,2]
[405899191,1771411840219,-168.3888056,0.00011228,2]
[405899192,1771411840228,-17218.5,0.00011233,2]
[405899193,1771411840237,-1500.0,0.00011463,2]
[405899194,1771411840248,-1195.89534376,0.00011463,2]
[405899195,1771411840257,-1509.709324,0.00011463,2]
[405899196,1771411840267,-1500.0,0.00011463,2]
[405899197,1771411840277,-233.51889341,0.00011503,2]
[405899198,1771411840286,-194.72792766,0.00011503,2]
[405899199,1771411840296,-309.29654756,0.00011503,2]
[405899200,1771411840305,-60082.98567477,0.00011594,2]
[405899201,1771411840314,-200.0,0.00011644,2]
[405899202,1771411840324,-152.0,0.00011653,2]
[405899203,1771411840335,-153.0,0.00011653,2]
[405899204,1771411840347,-152.0,0.00011653,2]
[405899205,1771411840356,-153.0,0.00011653,2]
[405899206,1771411840365,-152.0,0.00011653,2]
[405899207,1771411840374,-153.0,0.00011653,2]
[405899208,1771411840384,-152.0,0.00011653,2]
[405899209,1771411840395,-152.0,0.00011653,2]
[405899210,1771411840405,-152.0,0.00011653,2]
[405899211,1771411840415,-152.0,0.00011653,2]
[405899212,1771411840426,-152.0,0.00011653,2]
[405899213,1771411840436,-1105.0,0.00011665,2]
[405899214,1771411840446,-433.0,0.00011796,2]
[405899215,1771411840457,-1351.534,0.00011912,2]
[405899216,1771411840471,-638.503,0.00011912,2]
[405899217,1771411840480,-162.74,0.00011912,2]
[405899218,1771411840491,-3534.442,0.00011912,2]
[405899219,1771411840500,-1164.0,0.00011912,2]
[405899220,1771411840511,-267.79,0.00011912,2]
[405899221,1771411840520,-1275.0,0.00011912,2]
[405899222,1771411840530,-412.0,0.00011912,2]
[405899223,1771411840542,-925.715,0.00011912,2]
[405899224,1771411840553,-2000.0,0.00012011,2]